bitfinex/quotes_BTCUSD_20250219
["timestamp","ask_amount","ask_price","bid_price","bid_amount"]
[1739996004305,0.10250365,96586.0,96565.0,0.207114]
[1739996004512,0.25780665,96586.0,96577.0,0.155316]
[1739996004734,0.155303,96585.0,96577.0,0.155316]
[1739996004930,0.10250365,96586.0,96577.0,0.155315]
[1739996005163,0.10250365,96586.0,96576.0,0.155317]
[1739996005376,0.155305,96584.0,96576.0,0.155317]
[1739996005551,0.10250365,96586.0,96577.0,0.155316]
[1739996005756,0.155303,96585.0,96577.0,0.155316]
[1739996005980,0.02067629,96584.0,96575.0,0.155318]
[1739996006198,0.155306,96583.0,96574.0,0.207094]
[1739996006396,0.155306,96583.0,96576.0,0.155317]
[1739996006727,0.155306,96583.0,96574.0,0.207094]
[1739996006966,0.155306,96583.0,96576.0,0.155316]
[1739996007180,0.155307,96583.0,96576.0,0.155316]
[1739996007415,0.155307,96583.0,96577.0,0.0008508]
[1739996008163,0.155306,96583.0,96577.0,0.0008508]
[1739996008370,0.02067629,96584.0,96577.0,0.0008508]
[1739996008571,0.17598129,96584.0,96578.0,0.155314]
[1739996008869,0.17598129,96584.0,96577.0,0.1561668]
[1739996009374,0.155306,96583.0,96577.0,0.0008508]
[1739996009695,0.155307,96583.0,96577.0,0.0008508]
[1739996010055,0.17598229,96584.0,96577.0,0.0008508]
[1739996010337,0.02067629,96584.0,96577.0,0.0008508]
[1739996010933,0.02067629,96584.0,96577.0,0.1561668]
[1739996010934,0.17598229,96584.0,96577.0,0.1561668]
[1739996011161,0.02067629,96584.0,96577.0,0.0018508]
[1739996011276,0.17598229,96584.0,96577.0,0.0018508]
[1739996011480,0.02067629,96584.0,96577.0,0.0018508]
[1739996011780,0.155309,96582.0,96577.0,0.0018508]
[1739996012339,0.155309,96582.0,96577.0,0.0008508]
[1739996013182,0.155309,96582.0,96577.0,0.0018508]
[1739996013377,0.155314,96579.0,96577.0,0.0018508]
[1739996013714,0.155314,96578.0,96577.0,0.0018508]
[1739996013886,0.33601765,96578.0,96577.0,0.0018508]
[1739996014114,0.35523971,96578.0,96577.0,0.0018508]
[1739996014315,0.5005585,96578.0,96577.0,0.0018508]
[1739996014673,0.5489585,96578.0,96577.0,0.0018508]
[1739996014874,1.4055335,96578.0,96577.0,0.0018508]
[1739996015077,1.5054915,96578.0,96577.0,0.0018508]
[1739996015414,1.4499955,96578.0,96577.0,0.0008508]
[1739996015936,1.50871185,96578.0,96577.0,0.0008508]
[1739996016145,0.01454085,96577.0,96522.0,0.0008504]
[1739996016349,0.01454085,96577.0,96531.0,0.207186]
[1739996016350,0.25217585,96565.0,96531.0,0.207186]
[1739996016590,0.4572075,96565.0,96543.0,0.155371]
[1739996016999,0.4572075,96565.0,96539.0,0.207168]
[1739996017199,0.47344161,96565.0,96546.0,0.155366]
[1739996017398,0.47258161,96565.0,96546.0,0.155366]
[1739996017605,0.47258161,96565.0,96545.0,0.155367]
[1739996018820,0.47658161,96565.0,96544.0,0.155368]
[1739996019225,0.47258161,96565.0,96544.0,0.155368]
[1739996019385,0.47358161,96565.0,96545.0,0.155367]
[1739996019810,0.47358161,96565.0,96544.0,0.155369]
[1739996019970,0.4941601,96565.0,96541.0,0.1562252]
[1739996020500,0.4941601,96565.0,96541.0,0.0008512]
[1739996020685,0.4941601,96565.0,96542.0,0.155372]
[1739996021084,0.6441601,96565.0,96542.0,0.155372]
[1739996021492,0.6431601,96565.0,96542.0,0.155372]
[1739996021743,0.6431601,96565.0,96543.0,0.15537]
[1739996021946,0.6441601,96565.0,96543.0,0.15537]
[1739996022147,0.6441601,96565.0,96541.0,0.0008512]
[1739996022148,0.65077684,96565.0,96542.0,0.207163]
[1739996022492,0.65177684,96565.0,96542.0,0.207163]
[1739996022691,0.65077684,96565.0,96542.0,0.207163]
[1739996023014,0.65277684,96565.0,96543.0,0.155369]
[1739996023215,0.65077684,96565.0,96544.0,0.155368]
[1739996023426,0.65077684,96565.0,96542.0,0.207163]
[1739996023622,0.65277684,96565.0,96546.0,0.155366]
[1739996024037,0.63654273,96565.0,96543.0,0.207159]
[1739996024292,0.63654273,96565.0,96541.0,0.1562242]
[1739996024506,0.63654273,96565.0,96541.0,0.0008512]
[1739996024698,0.53487473,96565.0,96543.0,0.15537]
[1739996025006,0.66808673,96565.0,96544.0,0.155369]
[1739996025203,0.66808673,96565.0,96544.0,0.207159]
[1739996025418,0.67008673,96565.0,96545.0,0.155367]
[1739996025630,0.66808673,96565.0,96545.0,0.155367]
[1739996026133,0.67008673,96565.0,96544.0,0.155369]
[1739996026784,0.77259038,96565.0,96541.0,0.0008512]
[1739996026974,0.155372,96542.0,96541.0,0.0008512]
[1739996027181,0.207161,96544.0,96541.0,0.0012843]
[1739996027407,0.10250365,96543.0,96541.0,0.0012843]
[1739996027791,0.155372,96542.0,96541.0,0.0012843]
[1739996028028,0.25787565,96542.0,96541.0,0.0012843]
[1739996028606,0.25787565,96542.0,96541.0,0.0052843]
[1739996029033,0.29364275,96542.0,96541.0,0.0052843]
[1739996029168,0.13827075,96542.0,96541.0,0.0052843]
[1739996029370,0.29364275,96542.0,96541.0,0.0052843]
[1739996029773,0.29364275,96542.0,96541.0,0.0082843]
[1739996036751,0.13827075,96542.0,96541.0,0.0082843]
[1739996037279,0.29364275,96542.0,96541.0,0.0082843]
[1739996038235,0.11720169,96542.0,96541.0,0.0082843]
[1739996039002,0.01469804,96542.0,96541.0,0.1636583]
[1739996039253,0.01623645,96546.0,96542.0,0.155371]
[1739996039459,0.01623645,96546.0,96541.0,0.2154483]
[1739996039758,0.03012795,96546.0,96542.0,0.207163]
[1739996039989,0.03012795,96546.0,96543.0,0.207161]
[1739996040138,0.03012795,96546.0,96541.0,0.0525843]
[1739996040344,0.03012795,96546.0,96542.0,0.155372]
[1739996040555,0.03012795,96546.0,96545.0,0.155367]
[1739996040726,0.0138915,96546.0,96545.0,0.155367]
[1739996040925,0.02258309,96565.0,96541.0,0.0485843]
[1739996040926,0.0004255,96565.0,96541.0,0.0485843]
[1739996041126,0.01623503,96558.0,96551.0,0.207144]
[1739996041333,0.11873868,96558.0,96542.0,0.002]
[1739996041528,0.11873868,96558.0,96551.0,0.155357]
[1739996042166,0.155351,96555.0,96548.0,0.155362]
[1739996042534,0.1330377,96558.0,96541.0,0.0485843]
[1739996042731,0.1330377,96558.0,96547.0,0.207152]
[1739996042732,0.3401677,96558.0,96547.0,0.207152]
[1739996042940,0.2903857,96558.0,96551.0,0.155356]
[1739996043382,0.1350377,96558.0,96550.0,0.155359]
[1739996043587,0.155348,96557.0,96550.0,0.155359]
[1739996044034,0.155348,96557.0,96551.0,0.000851]
[1739996044240,0.1350377,96558.0,96551.0,0.000851]
[1739996044438,0.1320377,96558.0,96551.0,0.000851]
[1739996044741,0.155348,96557.0,96551.0,0.156208]
[1739996045444,0.1320377,96558.0,96551.0,0.003851]
[1739996045584,0.1320377,96558.0,96551.0,0.001851]
[1739996046040,0.1320377,96558.0,96556.0,0.155349]
[1739996046275,0.02953405,96558.0,96557.0,0.155348]
[1739996046448,0.01329902,96558.0,96557.0,0.155348]
[1739996046823,0.01329902,96558.0,96555.0,0.287533]
[1739996046824,0.01366333,96565.0,96561.0,0.155342]
[1739996047252,0.01366333,96565.0,96558.0,0.207127]
[1739996047464,0.01366333,96565.0,96560.0,0.155343]
[1739996047974,0.01366333,96565.0,96561.0,0.155341]
[1739996048758,0.01366333,96565.0,96560.0,0.004]
[1739996048960,0.01366333,96565.0,96560.0,0.002]
[1739996049340,0.01366333,96565.0,96561.0,0.002]
[1739996049579,0.01366333,96565.0,96560.0,0.155343]
[1739996049779,0.01366333,96565.0,96561.0,0.002]
[1739996050802,0.01366333,96565.0,96561.0,0.157342]
[1739996051001,0.01366333,96565.0,96560.0,0.157343]
[1739996051159,0.01366333,96565.0,96560.0,0.159343]
[1739996051364,0.01366333,96565.0,96560.0,0.002]
[1739996051585,0.0004255,96565.0,96564.0,0.155337]
[1739996051968,0.0004255,96565.0,96564.0,0.235337]
[1739996052787,0.0004255,96565.0,96564.0,0.237337]
[1739996054025,0.0014255,96565.0,96564.0,0.242337]
[1739996054222,0.0014255,96565.0,96564.0,0.235337]
[1739996054574,0.0014255,96565.0,96564.0,0.249337]
[1739996054785,0.0024255,96565.0,96564.0,0.094]
[1739996054989,0.0014255,96565.0,96563.0,0.0481]
[1739996055167,0.0014255,96565.0,96564.0,0.162337]
[1739996055394,0.0024255,96565.0,96564.0,0.169337]
[1739996055601,0.0004255,96565.0,96564.0,0.162337]
[1739996055801,0.0004255,96565.0,96564.0,0.155337]
[1739996055999,0.0014255,96565.0,96564.0,0.169337]
[1739996057335,0.0014255,96565.0,96564.0,0.162337]
[1739996057486,0.0014255,96565.0,96564.0,0.167337]
[1739996057688,0.0004255,96565.0,96564.0,0.160337]
[1739996057889,0.0004255,96565.0,96564.0,0.243737]
[1739996058171,0.0004255,96565.0,96564.0,0.233737]
[1739996058378,0.0004255,96565.0,96564.0,0.240737]
[1739996058723,0.0004255,96565.0,96564.0,0.247737]
[1739996058927,0.0014255,96565.0,96564.0,0.240737]
[1739996059519,0.0024255,96565.0,96564.0,0.247737]
[1739996066104,0.0024255,96565.0,96564.0,0.014]
[1739996066281,0.0024255,96565.0,96564.0,0.169337]
[1739996067068,0.0024255,96565.0,96564.0,0.162337]
[1739996067425,0.0004255,96565.0,96564.0,0.162337]
[1739996068937,0.0014255,96565.0,96564.0,0.169337]
[1739996070078,0.0014255,96565.0,96564.0,0.1701878]
[1739996071128,0.0014255,96565.0,96564.0,0.81989145]
[1739996079948,0.0014255,96565.0,96564.0,0.81289145]
[1739996080161,0.0014255,96565.0,96564.0,0.81989145]
[1739996080360,0.0004255,96565.0,96564.0,0.81289145]
[1739996080583,0.0004255,96565.0,96564.0,0.81989145]
[1739996080761,0.0014255,96565.0,96564.0,0.81989145]
[1739996101406,0.0014255,96565.0,96564.0,0.74309145]
[1739996101562,0.0014255,96565.0,96564.0,0.4905878]
[1739996102188,0.0014255,96565.0,96564.0,0.6405878]
[1739996110655,0.5242255,96565.0,96564.0,0.6405878]
[1739996114321,5e-07,96565.0,96564.0,0.82529145]
[1739996114571,5e-07,96565.0,96564.0,0.87229145]
[1739996115600,0.0004259,96565.0,96564.0,0.87229145]
[1739996116005,0.0004254,96565.0,96564.0,0.87229145]
[1739996118091,4e-07,96565.0,96564.0,0.87229145]
[1739996120482,4e-07,96565.0,96564.0,0.4905878]
[1739996120893,4e-07,96565.0,96564.0,0.3352508]
[1739996121310,4e-07,96565.0,96564.0,0.4905878]
[1739996121838,4e-07,96565.0,96564.0,0.4835878]
[1739996122041,4e-07,96565.0,96564.0,0.4765878]
[1739996122240,4e-07,96565.0,96564.0,0.4825878]
[1739996122439,4e-07,96565.0,96564.0,0.4895878]
[1739996123050,4e-07,96565.0,96564.0,0.4835878]
[1739996123249,4e-07,96565.0,96564.0,0.4895878]
[1739996123823,4e-07,96565.0,96564.0,0.4825878]
[1739996124024,4e-07,96565.0,96564.0,0.4895878]
[1739996124429,4e-07,96565.0,96564.0,0.4765878]
[1739996124779,4e-07,96565.0,96564.0,0.4905878]
[1739996125163,4e-07,96565.0,96564.0,0.4835878]
[1739996125335,4e-07,96565.0,96564.0,0.4815878]
[1739996125534,4e-07,96565.0,96564.0,0.4835878]
[1739996126037,4e-07,96565.0,96564.0,0.4895878]
[1739996126505,4e-07,96565.0,96564.0,0.1691878]
[1739996127240,4e-07,96565.0,96564.0,0.1621878]
[1739996127411,4e-07,96565.0,96564.0,0.1691878]
[1739996127770,4e-07,96565.0,96564.0,0.1621878]
[1739996128189,4e-07,96565.0,96564.0,0.1631878]
[1739996128397,4e-07,96565.0,96564.0,0.1701878]
[1739996138046,4e-07,96565.0,96564.0,0.1561878]
[1739996138244,4e-07,96565.0,96564.0,0.1631878]
[1739996138528,4e-07,96565.0,96564.0,0.1701878]
[1739996138930,4e-07,96565.0,96564.0,0.1631878]
[1739996139141,4e-07,96565.0,96564.0,0.1561878]
[1739996139410,4e-07,96565.0,96564.0,0.49469145]
[1739996139684,4e-07,96565.0,96564.0,0.50777502]
[1739996140229,4e-07,96565.0,96564.0,0.51477502]
[1739996140967,4e-07,96565.0,96564.0,0.50077502]
[1739996141324,4e-07,96565.0,96564.0,0.51477502]
[1739996141659,4e-07,96565.0,96564.0,0.50777502]
[1739996141863,4e-07,96565.0,96564.0,0.51477502]
[1739996143854,4e-07,96565.0,96564.0,0.56277502]
[1739996144304,4e-07,96565.0,96564.0,1.42657502]
[1739996148756,8e-07,96582.0,96581.0,0.42711]
[1739996148965,8e-07,96582.0,96581.0,0.85001365]
[1739996150040,4.407e-05,96582.0,96581.0,0.85001365]
[1739996150859,4.407e-05,96582.0,96581.0,0.85785022]
[1739996151068,4.407e-05,96582.0,96581.0,0.87185022]
[1739996152057,4.407e-05,96582.0,96581.0,0.89240963]
[1739996153651,4.407e-05,96582.0,96581.0,0.88540963]
[1739996154054,4.407e-05,96582.0,96581.0,0.89240963]
[1739996154989,5.1e-07,96597.0,96596.0,0.155285]
[1739996155195,4.378e-05,96597.0,96596.0,0.25778865]
[1739996156281,4.378e-05,96597.0,96596.0,0.26478865]
[1739996158006,4.378e-05,96597.0,96596.0,0.28474232]
[1739996158890,4.378e-05,96597.0,96596.0,0.60514232]
[1739996159795,4.378e-05,96597.0,96596.0,0.73948232]
[1739996159995,4.378e-05,96597.0,96596.0,0.88948232]
[1739996161190,4.378e-05,96597.0,96596.0,0.88248232]
[1739996161588,4.378e-05,96597.0,96596.0,0.88948232]
[1739996161889,4.378e-05,96597.0,96596.0,0.91071064]
[1739996164882,4.378e-05,96597.0,96596.0,1.45411064]
[1739996173432,4.378e-05,96597.0,96596.0,1.45496124]
[1739996174012,4.378e-05,96597.0,96596.0,1.47496124]
[1739996174934,4.378e-05,96597.0,96596.0,1.46096124]
[1739996175080,4.378e-05,96597.0,96596.0,1.46796124]
[1739996175278,4.378e-05,96597.0,96596.0,1.45496124]
[1739996175506,4.378e-05,96597.0,96596.0,1.47496124]
[1739996176445,4.378e-05,96597.0,96596.0,1.13643925]
[1739996176670,0.07554378,96597.0,96596.0,0.4835356]
[1739996176866,0.12384378,96597.0,96596.0,0.0078506]
[1739996177107,0.12384378,96597.0,96596.0,0.1701356]
[1739996177459,0.12384378,96597.0,96596.0,0.0008506]
[1739996177865,0.12384378,96597.0,96596.0,0.0138506]
[1739996178120,0.12384378,96597.0,96596.0,0.0078506]
[1739996178326,0.12384378,96597.0,96596.0,0.0008506]
[1739996178640,0.38163143,96597.0,96596.0,0.0118506]
[1739996178842,0.39617228,96597.0,96596.0,0.0068506]
[1739996179156,0.39617228,96597.0,96596.0,0.0108506]
[1739996179580,0.39617228,96597.0,96596.0,0.0068506]
[1739996179581,0.54617228,96597.0,96596.0,0.0068506]
[1739996179788,0.54617228,96597.0,96550.0,0.1298986]
[1739996179789,0.0248,96576.0,96565.0,0.207112]
[1739996179960,0.0248,96576.0,96553.0,0.00764]
[1739996180180,0.0248,96576.0,96574.0,0.155319]
[1739996180587,0.0788,96577.0,96576.0,0.155318]
[1739996180793,0.0818,96585.0,96584.0,0.155305]
[1739996181212,4.378e-05,96597.0,96596.0,0.155285]
[1739996183259,4.378e-05,96597.0,96584.0,0.014]
[1739996183622,4.378e-05,96597.0,96584.0,0.214072]
[1739996183823,4.378e-05,96597.0,96589.0,0.155296]
[1739996184019,0.00104378,96597.0,96596.0,0.014]
[1739996184281,0.00104378,96597.0,96596.0,0.169285]
[1739996184573,4.378e-05,96597.0,96596.0,0.155285]
[1739996185142,4.378e-05,96597.0,96596.0,0.1561356]
[1739996185341,4.378e-05,96597.0,96596.0,0.1611356]
[1739996186630,4.378e-05,96597.0,96596.0,0.1661356]
[1739996187005,4.378e-05,96597.0,96596.0,0.26863925]
[1739996187163,4.378e-05,96597.0,96596.0,0.26363925]
[1739996187361,4.378e-05,96597.0,96596.0,0.26863925]
[1739996187566,4.378e-05,96597.0,96596.0,0.26363925]
[1739996187911,4.378e-05,96597.0,96596.0,0.26563925]
[1739996188067,4.378e-05,96597.0,96596.0,0.25863925]
[1739996188500,4.378e-05,96597.0,96596.0,0.26563925]
[1739996189394,4.378e-05,96597.0,96596.0,0.1631356]
[1739996189860,4.378e-05,96597.0,96596.0,0.1701356]
[1739996193251,0.07504378,96597.0,96596.0,0.0148506]
[1739996193471,0.07504378,96597.0,96596.0,0.1701356]
[1739996193683,0.07504378,96597.0,96596.0,0.0148506]
[1739996194346,0.07504378,96597.0,96596.0,0.0008506]
[1739996194569,0.07504378,96597.0,96596.0,0.0058506]
[1739996194826,0.07504378,96597.0,96596.0,0.0108506]
[1739996195253,0.07504378,96597.0,96596.0,0.1661356]
[1739996195427,0.07504378,96597.0,96596.0,0.1611356]
[1739996195629,0.07504378,96597.0,96596.0,0.0058506]
[1739996196304,0.35985666,96597.0,96596.0,0.0058506]
[1739996196711,0.35985666,96597.0,96596.0,0.0108506]
[1739996196852,0.37608476,96597.0,96596.0,0.0108506]
[1739996197046,0.37608476,96597.0,96596.0,0.0058506]
[1739996197248,0.36360038,96597.0,96596.0,0.0058506]
[1739996197477,0.36360038,96597.0,96596.0,0.0008506]
[1739996199205,0.19377553,96597.0,96596.0,0.0008506]
[1739996200685,0.19477553,96597.0,96596.0,0.1581356]
[1739996200879,0.09227188,96597.0,96596.0,0.1581356]
[1739996202035,0.09127188,96597.0,96596.0,0.1581356]
[1739996202237,0.09127188,96597.0,96596.0,0.0028506]
[1739996202441,0.24655588,96597.0,96596.0,0.0048506]
[1739996202660,0.24655588,96597.0,96596.0,0.0028506]
[1739996202897,0.24655588,96597.0,96596.0,0.0008506]
[1739996203092,0.24655588,96597.0,96596.0,0.0058506]
[1739996203580,0.24655588,96597.0,96596.0,0.0008506]
[1739996203733,0.24655588,96597.0,96596.0,0.0038506]
[1739996203956,0.17754743,96597.0,96596.0,0.0038506]
[1739996204162,0.33283143,96597.0,96596.0,0.0038506]
[1739996204362,0.33283143,96597.0,96596.0,0.0068506]
[1739996204564,0.33283143,96597.0,96596.0,0.0038506]
[1739996205168,0.36311309,96597.0,96596.0,0.0038506]
[1739996205566,0.56291309,96597.0,96596.0,0.0038506]
[1739996205768,1.07956409,96597.0,96596.0,0.0008506]
[1739996205990,1.07956409,96597.0,96596.0,0.0038506]
[1739996206534,1.07956409,96597.0,96596.0,0.0008506]
[1739996206887,1.08256409,96597.0,96596.0,0.0008506]
[1739996207611,1.10291977,96597.0,96596.0,0.0008506]
[1739996207960,1.08717896,96597.0,96596.0,0.0008506]
[1739996208172,1.1034088,96597.0,96596.0,0.0008506]
[1739996209536,1.4283088,96597.0,96596.0,0.0008506]
[1739996213011,1.4283088,96597.0,96596.0,0.0008106]
[1739996213654,0.9116578,96597.0,96596.0,0.0008106]
[1739996213858,0.72560311,96597.0,96596.0,0.0008106]
[1739996214099,0.96897582,96597.0,96596.0,0.0008106]
[1739996214526,0.98351667,96597.0,96596.0,0.0008106]
[1739996214873,0.98051667,96597.0,96596.0,0.0008106]
[1739996215277,0.98351667,96597.0,96596.0,0.0008106]
[1739996215754,0.68734396,96597.0,96596.0,0.0008106]
[1739996215977,0.42744743,96597.0,96596.0,0.1560956]
[1739996216228,0.42744743,96597.0,96596.0,0.0008106]
[1739996216448,0.44198828,96597.0,96596.0,0.0008106]
[1739996216679,0.42744743,96597.0,96596.0,0.0008106]
[1739996216903,0.44198828,96597.0,96596.0,0.0028106]
[1739996217085,0.45821633,96597.0,96596.0,0.0028106]
[1739996217412,0.45821633,96597.0,96596.0,0.0048106]
[1739996219347,0.6133906,96597.0,96596.0,0.0048106]
[1739996220115,0.4581066,96597.0,96596.0,0.0048106]
[1739996220510,0.6133906,96597.0,96596.0,0.0048106]
[1739996220874,0.4581066,96597.0,96596.0,0.0048106]
[1739996221436,0.1332066,96597.0,96596.0,0.0048106]
[1739996223908,0.27226255,96597.0,96596.0,0.0048106]
[1739996225358,0.55186255,96597.0,96596.0,0.0048106]
[1739996225563,1.51072255,96597.0,96596.0,0.0048106]
[1739996225781,1.49478555,96597.0,96596.0,0.0028106]
[1739996225986,1.49478555,96597.0,96596.0,0.0008106]
[1739996226139,1.49478555,96597.0,96596.0,0.0028106]
[1739996226344,1.5972892,96597.0,96596.0,0.0028106]
[1739996226578,0.155335,96565.0,96559.0,0.13167761]
[1739996226789,0.155335,96565.0,96559.0,0.0486]
[1739996227336,0.01454085,96577.0,96569.0,0.155328]
[1739996227467,0.01454085,96575.0,96567.0,0.155331]
[1739996227667,0.01454085,96573.0,96567.0,0.155331]
[1739996228010,0.01454085,96571.0,96567.0,4.327e-05]
[1739996228316,0.02642572,96571.0,96567.0,4.327e-05]
[1739996229150,0.02642572,96571.0,96567.0,0.15537427]
[1739996229360,0.02642572,96571.0,96567.0,4.327e-05]
[1739996229692,0.02742572,96571.0,96567.0,0.01204327]
[1739996229824,0.02786476,96570.0,96567.0,0.01204327]
[1739996230033,0.02742572,96571.0,96567.0,0.01204327]
[1739996230254,0.02742572,96571.0,96567.0,0.01289427]
[1739996230468,0.01454085,96569.0,96567.0,0.01289427]
[1739996230653,0.2723745,96568.0,96567.0,0.01289427]
[1739996231440,0.2723745,96568.0,96567.0,0.00689427]
[1739996231623,0.2723745,96568.0,96567.0,0.01289427]
[1739996231624,0.4985745,96568.0,96567.0,0.01289427]
[1739996231874,0.4985745,96568.0,96567.0,0.00689427]
[1739996232482,0.4985745,96568.0,96567.0,0.00889427]
[1739996233036,0.4985745,96568.0,96567.0,0.00289427]
[1739996233280,0.4985745,96568.0,96567.0,0.00389427]
[1739996233501,0.58404048,96568.0,96567.0,0.00189427]
[1739996233715,0.58404048,96568.0,96567.0,0.00089427]
[1739996234050,0.69074048,96568.0,96567.0,0.00089427]
[1739996234708,0.69551848,96568.0,96567.0,0.00089427]
[1739996234906,0.58404048,96568.0,96567.0,0.00189427]
[1739996235113,0.6008525,96568.0,96567.0,0.00189427]
[1739996235285,0.6008525,96568.0,96567.0,0.00089427]
[1739996235487,0.6873855,96568.0,96567.0,0.00089427]
[1739996235688,0.5005745,96568.0,96567.0,0.00089427]
[1739996235903,0.9989945,96568.0,96567.0,0.00089427]
[1739996236259,1.35325315,96568.0,96567.0,0.00089427]
[1739996236667,1.35625315,96568.0,96567.0,0.00089427]
[1739996236864,1.37248667,96568.0,96567.0,0.00089427]
[1739996237274,1.28863767,96568.0,96567.0,0.00089427]
[1739996237992,1.28563767,96568.0,96567.0,0.00089427]
[1739996238194,1.28863767,96568.0,96567.0,0.00089427]
[1739996238431,1.28763767,96568.0,96567.0,0.00089427]
[1739996238598,1.28563767,96568.0,96567.0,0.00089427]
[1739996238801,1.28763767,96568.0,96567.0,0.00089427]
[1739996239159,1.29063767,96568.0,96567.0,0.00089427]
[1739996239512,1.18813402,96568.0,96567.0,0.00089427]
[1739996239731,1.00770102,96568.0,96567.0,0.00089427]
[1739996241780,1.03389402,96568.0,96567.0,0.00089427]
[1739996242651,1.03089402,96568.0,96567.0,0.00089427]
[1739996242847,1.03389402,96568.0,96567.0,0.00089427]
[1739996243057,1.03189402,96568.0,96567.0,0.00089427]
[1739996243778,1.0156605,96568.0,96567.0,0.00089427]
[1739996244223,1.0126605,96568.0,96567.0,0.00089427]
[1739996244477,0.207118,96563.0,96541.0,0.0474512]
[1739996244741,0.16989685,96552.0,96551.0,0.0012841]
[1739996244944,0.7043055,96552.0,96551.0,0.0012841]
[1739996245089,0.7044615,96552.0,96551.0,0.0012841]
[1739996245507,0.9373615,96552.0,96551.0,0.0012841]
[1739996245730,0.95762971,96552.0,96551.0,0.0012841]
[1739996245938,0.96062971,96552.0,96551.0,0.0012841]
[1739996246177,0.95962971,96552.0,96551.0,0.0012841]
[1739996246374,0.27693777,96552.0,96551.0,0.0012841]
[1739996246573,0.46398755,96552.0,96551.0,0.0012841]
[1739996247096,0.59702355,96552.0,96551.0,0.0012841]
[1739996247302,0.46198755,96552.0,96551.0,0.0012841]
[1739996247527,0.46698755,96552.0,96551.0,0.0012841]
[1739996247721,0.46298755,96552.0,96551.0,0.0012841]
[1739996248125,0.47822254,96552.0,96551.0,0.0012841]
[1739996248336,0.47522254,96552.0,96551.0,0.0012841]
[1739996248555,0.47522254,96552.0,96551.0,0.00119196]
[1739996248556,0.80677654,96552.0,96551.0,0.00119196]
[1739996248848,0.47422254,96552.0,96551.0,0.00219196]
[1739996249488,0.47422254,96552.0,96551.0,0.00119196]
[1739996249648,1.11065354,96552.0,96551.0,0.00119196]
[1739996250381,0.47422254,96552.0,96551.0,0.00119196]
[1739996250881,0.47522254,96552.0,96551.0,0.00119196]
[1739996251094,0.80012254,96552.0,96551.0,0.00119196]
[1739996251426,1.23588054,96552.0,96551.0,0.00119196]
[1739996251642,1.20818676,96552.0,96551.0,0.00119196]
[1739996251980,1.20918676,96552.0,96551.0,0.00119196]
[1739996252744,1.20818676,96552.0,96551.0,0.00119196]
[1739996253926,1.06954477,96552.0,96551.0,0.00119196]
[1739996254123,1.05459577,96552.0,96551.0,0.00119196]
[1739996254661,0.16454085,96551.0,96541.0,0.0008512]
[1739996254854,0.31991285,96542.0,96541.0,0.0008512]
[1739996255074,0.2670445,96542.0,96541.0,0.0008512]
[1739996255252,0.4224165,96542.0,96541.0,0.0008512]
[1739996256094,0.4224165,96542.0,96541.0,0.0028512]
[1739996256413,0.4224165,96542.0,96541.0,0.0008512]
[1739996256614,0.4224165,96542.0,96541.0,0.0018512]
[1739996257255,0.43865313,96542.0,96541.0,0.0018512]
[1739996264862,0.4224165,96542.0,96541.0,0.0018512]
[1739996268214,0.43865306,96542.0,96541.0,0.0018512]
[1739996268413,0.01623656,96542.0,96541.0,0.2023252]
[1739996268617,0.01623656,96542.0,96541.0,0.0469512]
[1739996271267,0.01623656,96542.0,96541.0,0.2023252]
[1739996272076,0.01623656,96542.0,96541.0,0.0469512]
[1739996272853,0.01623656,96542.0,96541.0,0.2023252]
[1739996274044,0.01623656,96542.0,96541.0,0.2022852]
[1739996276490,0.00085821,96552.0,96551.0,0.155358]
[1739996276671,0.00085821,96552.0,96551.0,0.288258]
[1739996278422,0.00085821,96552.0,96551.0,0.290258]
[1739996278546,0.00085821,96552.0,96551.0,0.288258]
[1739996278946,0.00085821,96552.0,96551.0,0.294258]
[1739996279150,0.00085821,96552.0,96551.0,0.288258]
[1739996279346,0.00085821,96552.0,96551.0,0.294258]
[1739996279779,0.00185821,96552.0,96551.0,0.294258]
[1739996280183,0.20706,96591.0,96551.0,0.294258]
[1739996280184,0.0004255,96596.0,96586.0,0.1255]
[1739996280383,0.155289,96594.0,96586.0,0.1255]
[1739996280609,0.10250365,96593.0,96586.0,0.045]
[1739996280766,0.32578682,96593.0,96586.0,0.045]
[1739996280978,0.11873282,96593.0,96574.0,0.045]
[1739996281213,0.155303,96586.0,96576.0,0.155316]
[1739996281415,0.01454085,96585.0,96577.0,0.155315]
[1739996281640,0.01454085,96582.0,96574.0,0.045]
[1739996281793,0.01454085,96580.0,96566.0,0.0805]
[1739996281988,0.16986285,96573.0,96572.0,4.327e-05]
[1739996282356,0.1170445,96573.0,96572.0,4.327e-05]
[1739996283572,0.01622996,96578.0,96577.0,0.155316]
[1739996283962,0.02,96610.0,96572.0,0.00204327]
[1739996283963,0.15,96594.0,96572.0,0.00204327]
[1739996284127,0.10250365,96593.0,96586.0,0.1553]
[1739996284332,0.01454085,96592.0,96573.0,0.08307761]
[1739996284531,0.01454085,96590.0,96573.0,0.08307761]
[1739996284734,0.01454085,96588.0,96577.0,0.003]
[1739996285066,0.01454085,96584.0,96579.0,0.155313]
[1739996285278,0.16984285,96586.0,96579.0,0.155313]
[1739996285569,0.01454085,96584.0,96573.0,0.08307761]
[1739996285790,0.155306,96583.0,96574.0,0.207093]
[1739996285913,0.155309,96582.0,96574.0,0.207093]
[1739996286118,0.155309,96582.0,96575.0,0.155319]
[1739996286328,0.155307,96583.0,96576.0,0.155317]
[1739996286527,0.155307,96583.0,96577.0,0.001]
[1739996286977,0.22161985,96582.0,96573.0,0.08307761]
[1739996287180,0.01454085,96581.0,96573.0,0.08307761]
[1739996287411,0.01454085,96581.0,96572.0,4.327e-05]
[1739996287412,0.155318,96576.0,96575.0,0.001]
[1739996287599,0.16985885,96576.0,96575.0,0.001]
[1739996287832,0.01454085,96575.0,96572.0,4.327e-05]
[1739996288009,0.16985485,96579.0,96573.0,0.003]
[1739996288214,0.01454085,96577.0,96573.0,0.003]
[1739996288427,0.01454085,96577.0,96573.0,0.001]
[1739996288635,0.01454085,96577.0,96575.0,0.004]
[1739996289665,0.01454085,96577.0,96575.0,0.005]
[1739996290045,0.01454085,96577.0,96572.0,4.327e-05]
[1739996290260,0.01454085,96577.0,96573.0,0.003]
[1739996290449,0.01454085,96576.0,96575.0,0.001]
[1739996290811,0.01454085,96576.0,96575.0,0.004]
[1739996291061,0.01454085,96575.0,96572.0,4.327e-05]
[1739996291272,0.01454085,96577.0,96572.0,0.00104327]
[1739996291488,0.01454085,96577.0,96573.0,0.004]
[1739996291718,0.01454085,96577.0,96572.0,0.00104327]
[1739996292195,0.01454085,96576.0,96575.0,0.004]
[1739996292773,0.01454085,96576.0,96575.0,0.005]
[1739996293361,0.16985885,96576.0,96575.0,0.005]
[1739996293982,0.01454085,96576.0,96575.0,0.001]
[1739996294187,0.2723625,96576.0,96575.0,0.001]